fUSD/lending_fUSD_20240216
["ID","MTS","AMOUNT","RATE_DAILY","PERIOD"]
[314194921,1708062618432,2070.0,0.00035,2]
[314194929,1708062631500,-279.92831739,0.00035034,4]
[314194930,1708062631512,-600.64413993,0.00035034,4]
[314194931,1708062631522,-505.32239072,0.00035035,4]
[314194932,1708062631531,-155.0,0.00035041,4]
[314194933,1708062631541,-2048.64755245,0.00035041,4]
[314194934,1708062631550,-455.5189555,0.00035042,10]
[314194935,1708062631559,-33677.99849896,0.00035042,4]
[314194936,1708062631568,-151.59725921,0.00035043,2]
[314194937,1708062631578,-3165.0737419,0.00035043,120]
[314194938,1708062631587,-695.95171897,0.00035143,10]
[314194939,1708062631596,-1779.11808291,0.00035143,10]
[314194940,1708062631606,-296.59,0.0003564,2]
[314194941,1708062631615,-151.59725911,0.00035719,2]
[314194942,1708062631626,-499.99,0.00035719,2]
[314194943,1708062631637,-4116.06,0.00035719,90]
[314194944,1708062631647,-151.59725911,0.00036395,2]
[314194945,1708062631656,-250.0,0.00036563,111]
[314194946,1708062631666,-250.0,0.00036706,2]
[314194947,1708062631676,-2000.0,0.00036778,2]
[314194948,1708062631686,-559.16,0.00036983,2]
[314194949,1708062631696,-151.59725911,0.00037071,2]
[314194950,1708062631705,-155.36,0.00037129,2]
[314194951,1708062631715,-197.06,0.00037438,2]
[314194952,1708062631724,-690.73859173,0.0003751,4]
[314194953,1708062631733,-1260.34,0.00037628,2]
[314194954,1708062631742,-289.58115424,0.00037731,4]
[314194955,1708062631751,-151.59725911,0.00037747,2]
[314194956,1708062631762,-296.59,0.00037904,2]
[314194957,1708062631771,-155.31,0.0003794,2]
[314194958,1708062631780,-824.1837,0.00038261,2]
[314194959,1708062631789,-150.0,0.000383,2]
[314194960,1708062631799,-495.5,0.00038351,10]
[314194961,1708062631808,-412.92,0.00038351,10]
[314194962,1708062631817,-344.1,0.00038351,10]
[314194963,1708062631827,-2664.5736474,0.00038354,7]
[314194964,1708062631836,-155.04,0.00038356,2]
[314194965,1708062631846,-1053.59,0.00038356,15]
[314194966,1708062631855,-75340.03494605,0.00038361,2]
[314194967,1708062631868,-353.62981947,0.00038361,2]
[314194968,1708062631883,-1778.08920812,0.00038361,2]
[314194969,1708062631898,-97389.89953357,0.00038361,2]
[314194970,1708062631908,-736.48928752,0.00038363,7]
[314194971,1708062631918,-171.16374656,0.00038388,7]
[314194972,1708062631927,-154.78153845,0.00038397,7]
[314194973,1708062631937,-259.27450436,0.00038397,7]
[314194975,1708062631948,-151.59725911,0.00038423,2]
[314194977,1708062631959,-10612.91,0.000385,8]
[314194978,1708062631969,-440.84,0.0003866,2]
[314194980,1708062631980,-516.48877952,0.00038995,4]
[314194982,1708062631989,-11854.0,0.00039,3]
[314194983,1708062631998,-1017.0,0.00039,8]
[314194984,1708062632008,-155.36,0.00039063,2]
[314194985,1708062632018,-197.06,0.00039082,2]
[314194986,1708062632027,-151.59725911,0.00039098,2]
[314194987,1708062632036,-150.0,0.00039209,2]
[314194988,1708062632046,-171.02,0.0003926,2]
[314194989,1708062632055,-5000.0,0.0003948,7]
[314194990,1708062632064,-150.0,0.00039494,2]
[314194991,1708062632073,-15000.0,0.000395,8]
[314194992,1708062632083,-150.0,0.0003952,2]
[314194993,1708062632091,-150.0,0.00039612,2]
[314194994,1708062632101,-150.0,0.00039619,2]
[314194995,1708062632110,-150.0,0.00039623,2]
[314194996,1708062632119,-150.0,0.00039694,2]
[314194997,1708062632128,-158.3,0.0003973,2]
[314194998,1708062632137,-150.0,0.00039751,2]
[314194999,1708062632146,-151.59725911,0.00039774,2]
[314195000,1708062632155,-1500.0,0.00039776,2]
[314195001,1708062632164,-205.0,0.00039798,2]
[314195002,1708062632173,-152.26,0.000398,3]
[314195003,1708062632182,-152.26,0.000398,3]
[314195004,1708062632191,-152.26,0.000398,3]
[314195005,1708062632200,-152.26,0.000398,3]
[314195006,1708062632211,-152.26,0.000398,3]
[314195007,1708062632220,-152.26,0.000398,3]
[314195008,1708062632229,-152.26,0.000398,3]
[314195009,1708062632239,-152.26,0.000398,3]
[314195010,1708062632248,-152.26,0.000398,3]
[314195011,1708062632257,-152.26,0.000398,3]
[314195012,1708062632266,-152.26,0.000398,3]
[314195013,1708062632276,-152.26,0.000398,3]
[314195014,1708062632285,-152.26,0.000398,3]
[314195015,1708062632295,-152.26,0.000398,3]
[314195016,1708062632305,-152.26,0.000398,3]
[314195017,1708062632314,-152.26,0.000398,3]
[314195018,1708062632324,-152.26,0.000398,3]
[314195019,1708062632334,-150.0,0.00039834,2]
[314195020,1708062632343,-150.0,0.00039843,2]
[314195021,1708062632353,-150.0,0.00039888,2]
[314195022,1708062632362,-483.61039131,0.000399,9]
[314195023,1708062632371,-412.51847126,0.000399,12]
[314195024,1708062632381,-150.0,0.00039924,2]
[314195025,1708062632390,-150.0,0.0003996,2]
[314195026,1708062632399,-21482.4282794,0.0003999,10]
[314195027,1708062632409,-500.0,0.0004,14]
[314195028,1708062632418,-19034.70097032,0.0004,8]
[314195029,1708062632427,-37548.93994197,0.0004,30]
[314195030,1708062632440,-327.01287504,0.0004,30]
[314195031,1708062632452,-52140.0,0.0004,30]
[314195032,1708062632468,-2217.34727568,0.0004,30]
[314195033,1708062632480,-499.82864977,0.0004,30]
[314195034,1708062632492,-394.61416969,0.0004,30]
[314195035,1708062632504,-6261.46074753,0.0004,30]
[314195036,1708062632513,-1339.3588924,0.0004,4]
[314195037,1708062632525,-6384.31143969,0.0004,4]
[314195038,1708062632537,-7382.376725,0.0004,4]
[314195039,1708062632548,-2242.77160239,0.0004,4]
[314195040,1708062632559,-3710.71199057,0.0004,4]
[314195041,1708062632571,-2344.94837737,0.0004,4]
[314195042,1708062632579,-255.0,0.0004,12]
[314195043,1708062632589,-49301.82202267,0.0004,30]
[314195044,1708062632598,-1000.0,0.0004,9]
[314195045,1708062632607,-255.0,0.0004,12]
[314195046,1708062632617,-1000.0,0.0004,2]
[314195047,1708062632626,-150.0,0.00040031,2]
[314195048,1708062632635,-150.0,0.00040041,2]
[314195049,1708062632643,-150.0,0.00040072,2]
[314195050,1708062632653,-150.0,0.00040097,2]
[314195051,1708062632662,-150.0,0.00040107,2]
[314195052,1708062632671,-225.4604951,0.00040116,30]
[314195053,1708062632680,-150.0,0.00040123,2]
[314195054,1708062632690,-150.0,0.00040167,2]
[314195055,1708062632699,-296.59,0.00040168,2]
[314195056,1708062632708,-150.0,0.00040177,2]
[314195057,1708062632717,-151.0,0.00040189,30]
[314195058,1708062632726,-150.0,0.00040248,2]
[314195059,1708062632736,-1000.0,0.000403,2]
[314195060,1708062632746,-553.21,0.00040303,2]
[314195061,1708062632755,-1342.65176746,0.00040304,10]
[314195062,1708062632764,-152.59450357,0.00040332,30]
[314195063,1708062632773,-166.66666666,0.00040334,30]
[314195064,1708062632782,-150.0,0.00040341,2]
[314195065,1708062632791,-150.0,0.00040377,2]
[314195066,1708062632801,-1342.65176746,0.0004039,10]
[314195067,1708062632810,-5149.5030991,0.000404,7]
[314195068,1708062632819,-150.0,0.0004042,2]
[314195069,1708062632828,-150.0,0.00040428,2]
[314195070,1708062632837,-151.59725911,0.0004045,2]
[314195071,1708062632848,-255.0,0.00040456,12]
[314195072,1708062632857,-255.0,0.00040456,12]
[314195073,1708062632867,-255.0,0.00040456,12]
[314195074,1708062632879,-255.0,0.00040456,12]
[314195075,1708062632889,-1170.0271432,0.00040481,2]
[314195076,1708062632899,-152.26,0.000405,4]
[314195077,1708062632908,-152.26,0.000405,4]
[314195078,1708062632918,-152.26,0.000405,4]
[314195079,1708062632927,-152.26,0.000405,4]
[314195080,1708062632936,-152.26,0.000405,4]
[314195081,1708062632945,-152.26,0.000405,4]
[314195082,1708062632955,-152.26,0.000405,4]
[314195083,1708062632965,-152.26,0.000405,4]
[314195084,1708062632974,-152.26,0.000405,4]
[314195085,1708062632983,-152.26,0.000405,4]
[314195086,1708062632996,-152.26,0.000405,4]
[314195087,1708062633006,-152.26,0.000405,4]
[314195088,1708062633015,-152.26,0.000405,4]
[314195089,1708062633025,-152.26,0.000405,4]
[314195090,1708062633034,-152.26,0.000405,4]
[314195091,1708062633043,-152.26,0.000405,4]
[314195092,1708062633052,-152.26,0.000405,4]
[314195093,1708062633061,-150.0,0.0004052,2]
[314195094,1708062633070,-154.09,0.00040523,2]
[314195095,1708062633079,-150.0,0.00040524,2]
[314195096,1708062633089,-1342.65176746,0.00040546,11]
[314195097,1708062633098,-150.0,0.00040549,2]
[314195098,1708062633108,-1500.0,0.00040556,2]
[314195099,1708062633116,-1500.0,0.00040562,2]
[314195100,1708062633126,-150.0,0.00040562,2]
[314195101,1708062633135,-150.0,0.00040578,2]
[314195102,1708062633144,-483.61039129,0.000406,9]
[314195103,1708062633153,-1170.0271432,0.00040612,2]
[314195104,1708062633163,-150.0,0.00040646,2]
[314195105,1708062633172,-127.01544162,0.00040659,2]
[314195106,1708062633181,-2258.71139144,0.00040659,8]
[314195107,1708062633192,-150.0,0.00040671,2]
[314195108,1708062633201,-1583.2,0.00040685,2]
[314195109,1708062633211,-452.15,0.00040685,2]
[314195110,1708062633220,-152.59450357,0.00040689,30]
[314195111,1708062633229,-150.0,0.00040708,2]
[314195112,1708062633242,-150.0,0.00040709,2]
[314195113,1708062633252,-197.06,0.00040725,2]
[314195114,1708062633261,-150.0,0.00040732,2]
[314195115,1708062633271,-150.0,0.00040767,2]
[314195116,1708062633281,-151.021624,0.00040798,27]
[314195117,1708062633290,-150.0,0.000408,2]
[314195118,1708062633300,-1000.0,0.000408,4]
[314195119,1708062633309,-2685.30353492,0.00040826,11]
[314195120,1708062633317,-2835.0,0.00040836,2]
[314195121,1708062633327,-953.0,0.00040836,2]
[314195122,1708062633336,-842.0,0.00040836,2]
[314195123,1708062633345,-216.0,0.00040836,2]
[314195124,1708062633354,-1231.0,0.00040836,2]
[314195125,1708062633363,-314.732,0.00040836,2]
[314195126,1708062633372,-343.0,0.00040836,2]
[314195127,1708062633381,-150.0,0.00040836,2]
[314195128,1708062633391,-321.0,0.00040836,2]
[314195129,1708062633399,-454.0,0.00040836,2]
[314195130,1708062633409,-150.0,0.00040836,2]
[314195131,1708062633418,-2289.0,0.00040836,2]
[314195132,1708062633428,-155.204,0.00040836,2]
[314195133,1708062633437,-150.0,0.00040857,2]
[314195134,1708062633447,-1860.56407113,0.0004089,5]
[314195135,1708062633456,-150.0,0.00040891,2]
[314195136,1708062633466,-1000.0,0.00040915,10]
[314195137,1708062633475,-150.0,0.00040917,2]
[314195138,1708062633484,-1342.65176746,0.00040918,11]
[314195139,1708062633497,-1000.0,0.00040928,10]
[314195140,1708062633507,-47.80945279,0.00040942,30]
[314195142,1708062637601,-150.0,0.00038895,2]
[314195143,1708062637611,-150.0,0.00038957,2]
[314195144,1708062637620,-150.0,0.00039036,2]
[314195145,1708062637630,-150.0,0.00039205,2]
[314195146,1708062637639,-150.0,0.00039206,2]
[314195147,1708062637648,-150.0,0.00039299,2]
[314195148,1708062637658,-150.0,0.00039414,2]
[314195149,1708062637667,-150.0,0.00040301,2]
[314195150,1708062637676,-150.0,0.00040789,2]
[314195151,1708062637686,-118.85721387,0.00040942,30]
[314195152,1708062637695,-150.0,0.00040952,2]
[314195153,1708062637704,-156.623007,0.00040969,7]
[314195154,1708062637713,-1170.0271432,0.00040971,2]
[314195155,1708062637722,-1500.0,0.00040981,2]
[314195156,1708062637731,-200.0,0.00040987,19]
[314195157,1708062637741,-200.0,0.00040987,18]
[314195158,1708062637750,-200.0,0.00040987,17]
[314195159,1708062637760,-200.0,0.00040987,16]
[314195160,1708062637769,-200.0,0.00040987,15]
[314195161,1708062637779,-19745.08316842,0.0004099,2]
[314195162,1708062637788,-158.38,0.00041,2]
[314195163,1708062637797,-150.0,0.00041006,2]
[314195164,1708062637806,-150.0,0.00041009,2]
[314195165,1708062637816,-151.0,0.0004101,7]
[314195166,1708062637825,-150.0,0.00041011,2]
[314195167,1708062637835,-1286.38896854,0.00041023,2]
[314195168,1708062637847,-213.61103146,0.00041023,2]
[314195169,1708062637856,-150.0,0.00041023,2]
[314195170,1708062637865,-150.0,0.00041042,2]
[314195171,1708062637878,-169.58196616,0.00041066,2]
[314195172,1708062637888,-150.0,0.00041067,2]
[314195173,1708062637897,-150.0,0.00041077,2]
[314195174,1708062637906,-150.0,0.00041078,2]
[314195175,1708062637916,-150.0,0.00041083,2]
[314195176,1708062638061,-862.27770084,0.00041094,4]
[314195177,1708062638076,-500.0,0.00041095,30]
[314195178,1708062638086,-381.65176815,0.00041095,15]
[314195179,1708062638095,-500.0,0.00041095,2]
[314195180,1708062638104,-600.0,0.00041095,30]
[314195181,1708062638113,-1018.38,0.00041095,30]
[314195182,1708062638122,-500.0,0.00041095,30]
[314195183,1708062638131,-500.0,0.00041095,30]
[314195184,1708062638140,-500.0,0.00041095,30]
[314195185,1708062638149,-500.0,0.00041095,30]
[314195186,1708062638158,-500.0,0.00041095,30]
[314195187,1708062638168,-500.0,0.00041095,30]
[314195188,1708062638177,-783.24,0.00041095,30]
[314195189,1708062638187,-500.0,0.00041095,30]
[314195190,1708062638196,-500.0,0.00041095,30]
[314195191,1708062638205,-500.0,0.00041095,30]
[314195192,1708062638214,-3183.41,0.00041095,30]
[314195193,1708062638224,-500.0,0.00041095,30]
[314195194,1708062638233,-500.0,0.00041095,30]
[314195195,1708062638243,-2288.25,0.00041095,30]
[314195196,1708062638252,-500.0,0.00041095,30]
[314195197,1708062638261,-500.0,0.00041095,30]
[314195198,1708062638270,-500.0,0.00041095,30]
[314195199,1708062638280,-500.0,0.00041095,30]
[314195200,1708062638290,-567.45,0.00041095,30]
[314195201,1708062638299,-500.0,0.00041095,30]
[314195202,1708062638309,-602.6652841,0.00041095,30]
[314195203,1708062638318,-500.0,0.00041095,30]
[314195204,1708062638327,-1478.29,0.00041095,7]
[314195205,1708062638336,-300.0,0.00041095,30]
[314195206,1708062638345,-500.0,0.00041095,30]
[314195207,1708062638355,-216.0,0.00041095,7]
[314195208,1708062638364,-500.0,0.00041095,30]
[314195209,1708062638373,-150.0,0.00041095,7]
[314195210,1708062638382,-626.51,0.00041095,30]
[314195211,1708062638391,-153.0,0.00041095,7]
[314195212,1708062638401,-1000.0,0.00041095,2]
[314195213,1708062638410,-500.0,0.00041095,30]
[314195214,1708062638419,-500.0,0.00041095,30]
[314195215,1708062638428,-500.0,0.00041096,2]
[314195216,1708062638437,-1805.78,0.00041096,2]
[314195217,1708062638446,-11930.61,0.00041096,2]
[314195218,1708062638456,-5735.13,0.00041096,2]
[314195219,1708062638466,-6213.29,0.00041096,30]
[314195220,1708062638476,-2821.51,0.00041096,2]
[314195221,1708062638485,-247.0275,0.00041099,7]
[314195222,1708062638495,-152.26,0.000411,4]
[314195223,1708062638504,-152.26,0.000411,4]
[314195224,1708062638514,-152.26,0.000411,4]
[314195225,1708062638524,-152.26,0.000411,4]
[314195226,1708062638533,-152.26,0.000411,4]
[314195227,1708062638543,-152.26,0.000411,4]
[314195228,1708062638552,-152.26,0.000411,4]
[314195229,1708062638562,-152.26,0.000411,4]
[314195230,1708062638571,-152.26,0.000411,4]
[314195231,1708062638581,-152.26,0.000411,4]
[314195232,1708062638590,-152.26,0.000411,4]
[314195233,1708062638600,-152.26,0.000411,4]
[314195234,1708062638609,-152.26,0.000411,4]
[314195235,1708062638618,-152.26,0.000411,4]
[314195236,1708062638627,-152.26,0.000411,4]
[314195237,1708062638636,-152.26,0.000411,4]
[314195238,1708062638645,-152.26,0.000411,4]
[314195239,1708062638655,-150.0,0.00041111,2]
[314195240,1708062638664,-1330.13808249,0.00041111,2]
[314195241,1708062638673,-150.0,0.00041118,2]
[314195242,1708062638682,-500.0,0.0004112,14]
[314195243,1708062638692,-500.0,0.0004112,14]
[314195244,1708062638701,-306.56217305,0.0004112,14]
[314195245,1708062638711,-151.59725911,0.00041126,2]
[314195246,1708062638721,-150.0,0.00041135,2]
[314195247,1708062638730,-488.29535235,0.00041146,2]
[314195248,1708062638741,-150.0,0.00041147,2]
[314195249,1708062638750,-37786.68112532,0.00041156,7]
[314195250,1708062638880,-453.08265143,0.00041156,7]
[314195251,1708062638895,-51244.55948605,0.00041156,7]
[314195252,1708062638905,-150.0,0.00041166,2]
[314195253,1708062638916,-167.25,0.00041191,2]
[314195254,1708062638925,-151.021624,0.00041198,27]
[314195255,1708062638935,-352.0,0.000412,7]
[314195256,1708062638944,-500.0,0.0004121,2]
[314195257,1708062638954,-150.0,0.00041225,2]
[314195258,1708062638962,-1500.0,0.00041229,2]
[314195259,1708062638972,-1500.0,0.00041254,2]
[314195260,1708062638981,-150.0,0.00041261,2]
[314195261,1708062638992,-150.0,0.00041273,2]
[314195262,1708062639001,-180.36270987,0.00041278,30]
[314195263,1708062639010,-150.0,0.0004128,2]
[314195264,1708062639020,-150.0,0.00041291,2]
[314195265,1708062639029,-214.0,0.000413,15]
[314195266,1708062639038,-483.61039129,0.000413,10]
[314195267,1708062639048,-150.0,0.00041304,2]
[314195268,1708062639057,-150.0,0.00041306,2]
[314195269,1708062639066,-150.0,0.00041321,2]
[314195270,1708062639075,-500.0,0.00041324,2]
[314195271,1708062639084,-150.0,0.00041327,2]
[314195272,1708062639094,-1170.0271432,0.0004134,2]
[314195273,1708062639103,-150.0,0.00041343,2]
[314195274,1708062639112,-22030.871263,0.00041349,2]
[314195275,1708062639122,-150.0,0.0004135,2]
[314195276,1708062639131,-166.11076206,0.00041359,30]
[314195277,1708062639140,-377.61659121,0.00041369,30]
[314195278,1708062639150,-500.0,0.00041369,2]
[314195279,1708062639158,-600.0,0.00041369,30]
[314195280,1708062639168,-1018.38,0.00041369,30]
[314195281,1708062639177,-500.0,0.00041369,30]
[314195282,1708062639186,-500.0,0.00041369,30]
[314195283,1708062639194,-313.7687895,0.00041369,30]
[314195284,1708062639203,-498.19831515,0.00041369,30]
[314195285,1708062639213,-500.0,0.00041369,30]
[314195286,1708062639222,-500.0,0.00041369,30]
[314195287,1708062639231,-783.24,0.00041369,30]
[314195288,1708062639242,-500.0,0.00041369,30]
[314195289,1708062639251,-500.0,0.00041369,30]
[314195290,1708062639261,-500.0,0.00041369,30]
[314195291,1708062639270,-3183.41,0.00041369,30]
[314195292,1708062639279,-500.0,0.00041369,30]
[314195293,1708062639290,-500.0,0.00041369,30]
[314195294,1708062639299,-2288.25,0.00041369,30]
[314195295,1708062639308,-500.0,0.00041369,30]
[314195296,1708062639318,-500.0,0.00041369,30]
[314195297,1708062639327,-500.0,0.00041369,30]
[314195298,1708062639336,-500.0,0.00041369,30]
[314195299,1708062639345,-567.45,0.00041369,30]
[314195300,1708062639355,-500.0,0.00041369,30]
[314195301,1708062639364,-1478.29,0.00041369,7]
[314195302,1708062639374,-300.0,0.00041369,30]
[314195303,1708062639384,-500.0,0.00041369,30]
[314195304,1708062639394,-500.0,0.00041369,30]
[314195305,1708062639402,-3000.0,0.00041369,8]
[314195306,1708062639411,-626.51,0.00041369,30]
[314195307,1708062639421,-500.0,0.00041369,30]
[314195308,1708062639430,-500.0,0.00041369,30]
[314195309,1708062639440,-150.0,0.0004138,2]
[314195310,1708062639449,-150.0,0.00041383,2]
[314195311,1708062639459,-1000.0,0.00041389,2]
[314195312,1708062639470,-3267.62836697,0.0004139,2]
[314195313,1708062639479,-150.0,0.00041394,2]
[314195314,1708062639488,-150.0,0.00041397,2]
[314195315,1708062639499,-154805.61540192,0.000414,10]
[314195316,1708062639512,-169239.2777597,0.000414,10]
[314195317,1708062639521,-2000.0,0.000414,7]
[314195318,1708062639530,-200.0,0.000414,7]
[314195319,1708062639539,-154.0,0.00041418,7]
[314195320,1708062639549,-500.0,0.00041438,2]
[314195321,1708062639558,-169.58196615,0.00041447,2]
[314195322,1708062639568,-150.0,0.00041457,2]
[314195323,1708062639577,-150.0,0.00041458,2]
[314195324,1708062639586,-150.0,0.00041459,2]
[314195325,1708062639595,-150.0,0.00041463,2]
[314195326,1708062639603,-215.0,0.00041465,7]
[314195327,1708062639613,-150.0,0.00041465,7]
[314195328,1708062639621,-151.0,0.00041465,7]
[314195329,1708062639630,-152.59450357,0.00041477,30]
[314195330,1708062639639,-257.394,0.00041491,30]
[314195331,1708062639649,-151.021678,0.00041498,27]
[314195332,1708062639658,-150.0,0.00041498,2]
[314195333,1708062639667,-652.61027801,0.000415,5]
[314195334,1708062639676,-150.0,0.00041501,2]
[314195335,1708062639685,-179.40063518,0.00041502,15]
[314195336,1708062639694,-200.0,0.00041513,20]
[314195337,1708062639703,-150.0,0.00041516,2]
[314195338,1708062639712,-20340.41542528,0.00041517,2]
[314195339,1708062639725,-771.11067838,0.00041517,2]
[314195340,1708062639736,-7769.19326095,0.00041517,2]
[314195341,1708062639748,-2195.05215565,0.00041517,2]
[314195342,1708062640184,-1769.48740449,0.00041517,2]
[314195343,1708062640967,-1430.18375976,0.00041517,2]
[314195348,1708062642477,-450.0,0.00041517,2]
[314195349,1708062642531,-1554.7481601,0.00041517,2]
[314195350,1708062642588,-633.90423553,0.00041517,2]
[314195351,1708062642599,-314.28148587,0.00041517,2]
[314195352,1708062642645,-352.73851809,0.00041517,2]
[314195353,1708062642701,-693.64845955,0.00041517,2]
[314195354,1708062642757,-2218.67425899,0.00041517,2]
[314195355,1708062642768,-6629.94929736,0.00041517,2]
[314195356,1708062642777,-150.0,0.00041519,2]
[314195357,1708062642786,-800.0,0.00041534,2]
[314195358,1708062642796,-154.6833297,0.00041543,12]
[314195359,1708062642805,-5000.0,0.00041544,3]
[314195360,1708062642814,-150.0,0.00041548,2]
[314195361,1708062642823,-500.0,0.00041553,2]
[314195362,1708062642832,-154.0,0.00041555,7]
[314195363,1708062642841,-1500.0,0.00041565,2]
[314195364,1708062642850,-150.0,0.00041575,2]
[314195365,1708062642859,-286.75,0.0004158,10]
[314195366,1708062642868,-500.0,0.00041582,2]
[314195367,1708062642879,-500.0,0.00041582,2]
[314195369,1708062642888,-500.0,0.00041582,2]
[314195370,1708062642900,-500.0,0.00041582,2]
[314195371,1708062642909,-500.0,0.00041582,2]
[314195372,1708062642918,-500.0,0.00041582,2]
[314195373,1708062642927,-500.0,0.00041582,2]
[314195374,1708062642938,-500.0,0.00041582,2]
[314195375,1708062642947,-500.0,0.00041582,2]
[314195376,1708062642956,-500.0,0.00041582,2]
[314195377,1708062642966,-500.0,0.00041582,2]
[314195378,1708062642976,-500.0,0.00041582,2]
[314195379,1708062642985,-500.0,0.00041582,2]
[314195380,1708062642993,-500.0,0.00041582,2]
[314195381,1708062643004,-500.0,0.00041582,2]
[314195382,1708062643014,-500.0,0.00041582,2]
[314195383,1708062643023,-500.0,0.00041582,2]
[314195384,1708062643032,-500.0,0.00041582,2]
[314195385,1708062643041,-500.0,0.00041582,2]
[314195386,1708062643050,-500.0,0.00041582,2]
[314195387,1708062643060,-500.0,0.00041582,2]
[314195388,1708062643070,-500.0,0.00041582,2]
[314195389,1708062643079,-500.0,0.00041582,2]
[314195390,1708062643089,-500.0,0.00041582,2]
[314195391,1708062643098,-500.0,0.00041582,2]
[314195392,1708062643107,-500.0,0.00041582,2]
[314195393,1708062643143,-500.0,0.00041582,2]
[314195394,1708062643152,-500.0,0.00041582,2]
[314195395,1708062643161,-500.0,0.00041582,2]
[314195396,1708062643171,-150.0,0.00041588,2]
[314195397,1708062643180,-150.0,0.0004159,2]
[314195398,1708062643189,-89484.3232628,0.0004159,7]
[314195399,1708062643198,-500.0,0.00041593,2]
[314195400,1708062643208,-500.0,0.00041593,2]
[314195401,1708062643217,-500.0,0.00041593,2]
[314195402,1708062643226,-500.0,0.00041593,2]
[314195403,1708062643235,-500.0,0.00041593,2]
[314195404,1708062643244,-500.0,0.00041593,2]
[314195405,1708062643255,-500.0,0.00041593,2]
[314195406,1708062643264,-500.0,0.00041593,2]
[314195407,1708062643273,-500.0,0.00041593,2]
[314195408,1708062643283,-500.0,0.00041593,2]
[314195409,1708062643292,-55555.0,0.000416,5]
[314195410,1708062643302,-191.26827364,0.00041602,2]
[314195411,1708062643311,-559.16,0.00041606,2]
[314195412,1708062643321,-150.0,0.00041612,2]
[314195413,1708062643331,-6883.49994392,0.00041634,2]
[314195414,1708062643340,-614.93379096,0.00041643,2]
[314195415,1708062643349,-600.0,0.00041643,30]
[314195416,1708062643359,-1018.38,0.00041643,30]
[314195417,1708062643368,-500.0,0.00041643,30]
[314195418,1708062643377,-500.0,0.00041643,30]
[314195419,1708062643386,-500.0,0.00041643,30]
[314195420,1708062643396,-500.0,0.00041643,30]
[314195421,1708062643405,-783.24,0.00041643,30]
[314195422,1708062643414,-500.0,0.00041643,30]
[314195423,1708062643423,-500.0,0.00041643,30]
[314195424,1708062643432,-500.0,0.00041643,30]
[314195425,1708062643442,-3183.41,0.00041643,30]
[314195426,1708062643451,-500.0,0.00041643,30]
[314195427,1708062643460,-500.0,0.00041643,30]
[314195428,1708062643469,-2288.25,0.00041643,30]
[314195429,1708062643479,-500.0,0.00041643,30]
[314195430,1708062643488,-500.0,0.00041643,30]
[314195431,1708062643497,-500.0,0.00041643,30]
[314195432,1708062643506,-567.45,0.00041643,30]
[314195433,1708062643515,-494.34345144,0.00041643,30]
[314195434,1708062643524,-1478.29,0.00041643,7]
[314195435,1708062643533,-300.0,0.00041643,30]
[314195436,1708062643542,-500.0,0.00041643,30]
[314195437,1708062643551,-500.0,0.00041643,30]